bitfinex-derivatives/quotes_ETHF0:USTF0_20250727
["timestamp","ask_amount","ask_price","bid_price","bid_amount"]
[1753612522142,3.4763,3790.8,3790.7,23.73712]
[1753612522342,3.4763,3790.8,3790.7,23.09522]
[1753612522844,3.4763,3790.8,3790.7,1.89422]
[1753612523038,3.4763,3790.8,3790.7,0.52742]
[1753612523339,1.92772,3790.7,3790.5,0.6419]
[1753612523537,3.4763,3790.6,3790.5,0.52745]
[1753612523733,2.4814,3790.4,3790.3,0.6419]
[1753612523937,3.4763,3790.4,3790.3,22.36937]
[1753612524142,3.4763,3790.4,3790.3,23.18707]
[1753612524337,3.4763,3790.4,3790.3,21.72747]
[1753612524838,3.4763,3790.4,3790.3,23.98047]
[1753612525044,3.4763,3790.4,3790.3,25.13587]
[1753612527541,4.00376,3790.4,3790.3,2.0087]
[1753612527745,4.00376,3790.4,3790.3,21.62]
[1753612528341,1.4186,3790.2,3790.1,2.33149]
[1753612528541,3.96599,3790.2,3790.1,23.54889]
[1753612528741,3.4385,3790.2,3790.1,23.54889]
[1753612528943,3.4385,3790.2,3790.1,23.93759]
[1753612529146,3.4385,3790.2,3790.1,25.08859]
[1753612532845,3.8064,3790.9,3790.8,0.52741]
[1753612533046,2.4121,3791.3,3791.2,3.88945]
[1753612533244,3.4385,3791.7,3791.6,3.88939]
[1753612533840,3.2078,3791.8,3791.7,0.52728]
[1753612534042,4.6264,3791.8,3791.7,1.86418]
[1753612534250,2.8259,3791.8,3791.7,3.88938]
[1753612534450,3.4385,3791.8,3791.7,3.88938]
[1753612539642,2.4121,3791.8,3791.7,3.88938]
[1753612540047,0.2,3791.9,3791.8,0.52727]
[1753612540250,0.2,3791.9,3791.8,3.88937]
[1753612540758,3.2078,3792.2,3792.1,3.88932]
[1753612546853,3.6359,3792.2,3792.1,3.88932]
[1753612547052,4.2485,3792.2,3792.1,3.88932]
[1753612547356,5.6199,3792.2,3792.1,3.88932]
[1753612547664,6.6463,3792.2,3792.1,3.88932]
[1753612548160,6.6463,3792.2,3792.1,3.27872]
[1753612548562,6.6463,3792.2,3792.1,3.88932]
[1753612549062,5.6199,3792.2,3792.1,3.88932]
[1753612549461,6.0477,3792.2,3792.1,3.88932]
[1753612549660,6.6463,3792.2,3792.1,3.88932]
[1753612549960,7.17351,3792.2,3792.1,1.9659]
[1753612550156,7.17351,3792.2,3792.1,1.4255]
[1753612550363,7.17351,3792.2,3792.1,1.95272]
[1753612550563,7.17351,3792.2,3792.1,3.27872]
[1753612551058,6.6463,3792.2,3792.1,1.32372]
[1753612551251,6.6463,3792.2,3791.6,1.31823]
[1753612551252,3.4385,3792.1,3791.8,0.7856]
[1753612551458,2.8259,3791.6,3791.5,24.46081]
[1753612551658,3.4385,3791.6,3791.5,24.46081]
[1753612551858,3.4385,3791.6,3791.5,22.11711]
[1753612552361,3.96579,3791.6,3791.5,0.52731]
[1753612554463,3.4385,3791.6,3791.5,3.88941]
[1753612555265,2.8399,3791.6,3791.5,3.88941]
[1753612555766,2.4121,3791.6,3791.5,3.88941]
[1753612557560,3.4385,3791.6,3791.5,3.88941]
[1753612557767,3.96579,3791.6,3791.5,0.52731]
[1753612559567,3.96579,3791.6,3791.5,3.87781]
[1753612559568,3.4385,3791.6,3791.5,3.87781]
[1753612559962,3.9658,3791.6,3791.5,3.87781]
[1753612560167,3.9658,3791.6,3791.5,2.48081]
[1753612560366,3.9658,3791.6,3791.5,1.86491]
[1753612561365,3.9658,3791.6,3791.5,1.31831]
[1753612561565,3.9658,3791.6,3791.5,0.52731]
[1753612563660,1.2887,3791.3,3790.9,1.4062]
[1753612563866,3.2801,3791.0,3790.9,1.14329]
[1753612564162,3.2801,3790.9,3790.8,0.5274]
[1753612564361,3.2801,3790.9,3790.7,5.13222]
[1753612564560,3.2801,3790.7,3790.6,0.52743]
[1753612565364,3.2801,3790.7,3790.5,0.52744]
[1753612565560,3.2801,3790.6,3790.5,1.93434]
[1753612565962,1.81613,3790.6,3790.4,0.52745]
[1753612566168,1.2887,3790.5,3790.4,0.52745]
[1753612566365,3.2801,3790.5,3790.4,0.52745]
[1753612566566,3.2801,3790.5,3790.4,1.93435]
[1753612567258,3.2801,3790.5,3790.4,2.48095]
[1753612567459,3.2801,3790.5,3790.4,3.87795]
[1753612570566,3.2801,3790.5,3790.4,2.48096]
[1753612570964,3.2801,3790.5,3790.4,3.27126]
[1753612571164,3.2801,3790.5,3790.4,3.87796]
[1753612573272,3.2801,3790.5,3790.4,7.08576]
[1753612573765,3.2801,3790.5,3790.4,3.87796]
[1753612575971,3.2801,3790.5,3790.4,3.27126]
[1753612576174,3.2801,3790.5,3790.4,2.48096]
[1753612576866,3.80755,3790.5,3790.4,2.48096]
[1753612577073,3.2801,3790.4,3790.3,0.52746]
[1753612577672,3.80756,3790.4,3790.3,0.52746]
[1753612579374,3.80756,3790.4,3790.0,3.8237]
[1753612579579,3.8076,3790.2,3790.1,1.86509]
[1753612579879,3.2801,3790.2,3790.1,1.31849]
[1753612580176,3.2801,3790.2,3790.1,3.87799]
[1753612581579,3.80759,3790.2,3790.1,3.87799]
[1753612581778,3.2801,3790.2,3790.1,3.87799]
[1753612582280,3.80759,3790.2,3790.1,3.87799]
[1753612585183,3.80759,3790.2,3790.1,2.48099]
[1753612585980,3.80759,3790.2,3790.1,3.27129]
[1753612586981,1.31864,3790.5,3790.0,3.2078]
[1753612586982,1.8162,3790.1,3790.0,3.2078]
[1753612587188,3.8076,3790.1,3790.0,0.52752]
[1753612587386,3.8076,3790.1,3790.0,1.53722]
[1753612587586,3.8076,3790.1,3790.0,2.71592]
[1753612587983,3.8076,3790.1,3790.0,0.3938]
[1753612588183,3.8076,3790.1,3789.9,0.52752]
[1753612588184,1.86303,3789.9,3789.8,2.07330839]
[1753612588385,3.85583,3789.9,3789.8,1.09920839]
[1753612588985,3.85583,3789.9,3789.8,0.57165839]
[1753612589482,3.85583,3789.9,3789.8,1.09920839]
[1753612589688,3.85583,3789.9,3789.8,3.36410839]
[1753612589887,3.85583,3789.9,3789.8,2.83655839]
[1753612590482,3.85583,3789.9,3789.8,3.36409839]
[1753612590986,1.5617,3789.9,3789.8,3.95459839]
[1753612591182,3.2078,3790.5,3790.1,1.9345]
[1753612591488,6.1534,3790.5,3790.4,3.2318]
[1753612591685,7.06355,3790.5,3790.4,3.75926]
[1753612591989,6.5361,3790.5,3790.4,3.75926]
[1753612594083,7.06355,3790.5,3790.4,3.75926]
[1753612594988,3.73525,3790.5,3790.4,3.75926]
[1753612595191,3.2078,3790.5,3790.4,3.75926]
[1753612596084,1.70311,3790.8,3790.6,3.2318]
[1753612596291,3.47301,3790.8,3790.7,3.75922]
[1753612596589,3.85571,3790.8,3790.7,3.75922]
[1753612596991,3.3283,3790.8,3790.7,3.75922]
[1753612597388,3.2078,3791.0,3790.7,3.2318]
[1753612597589,2.4015,3791.3,3791.2,1.82465]
[1753612597788,2.4015,3791.3,3791.2,3.75915]
[1753612598198,0.4087,3791.3,3791.2,3.75915]
[1753612598488,3.85561,3791.5,3791.4,3.75912]
[1753612598685,3.85561,3791.5,3791.4,0.52732]
[1753612600787,3.85561,3791.5,3791.4,1.46622]
[1753612601792,3.85561,3791.5,3791.4,1.87782]
[1753612603389,3.85561,3791.5,3791.4,1.3505]
[1753612603787,3.85561,3791.5,3791.4,0.3764]
[1753612603992,1.86284,3791.3,3791.2,2.0788]
[1753612604198,3.85564,3791.3,3791.2,3.2318]
[1753612604495,3.85564,3791.3,3791.2,3.75915]
[1753612605787,3.3283,3791.3,3791.2,3.75915]
[1753612606193,3.85564,3791.3,3791.2,3.75915]
[1753612606594,3.3283,3791.3,3791.2,3.75915]
[1753612606793,3.3283,3791.3,3791.2,2.75915]
[1753612607594,3.85564,3791.3,3791.2,2.75915]
[1753612607794,3.3283,3791.3,3791.2,2.75915]
[1753612609001,3.3283,3791.3,3791.2,3.44875]
[1753612609495,3.85564,3791.3,3791.2,3.44875]
[1753612610387,1.31876,3791.1,3791.0,1.90587]
[1753612610589,3.85566,3791.1,3791.0,2.46837]
[1753612610994,3.85566,3791.1,3791.0,3.15797]
[1753612611591,3.85566,3791.1,3791.0,3.66727]
[1753612618199,3.85566,3791.1,3791.0,1.3505]
[1753612618696,3.85566,3791.1,3791.0,2.6299]
[1753612619598,3.85566,3791.1,3791.0,1.3505]
[1753612619797,3.85566,3791.1,3791.0,1.87788]
[1753612620398,3.85566,3791.1,3791.0,0.52738]
[1753612620596,3.85566,3791.1,3791.0,3.68158]
[1753612621604,3.28886,3791.1,3791.0,3.68158]
[1753612622902,3.88236,3791.1,3791.0,3.68158]
[1753612623906,2.49746,3791.1,3791.0,3.68158]
[1753612624308,3.47386,3791.1,3791.0,3.68158]
[1753612625308,2.9465,3791.1,3791.0,3.68158]
[1753612625800,3.47386,3791.1,3791.0,3.68158]
[1753612626001,1.43566,3791.2,3791.1,1.83735]
[1753612626197,3.39376,3791.2,3791.1,3.68155]
[1753612626805,1.32883,3791.4,3791.2,3.16257]
[1753612627009,1.32883,3791.4,3791.3,3.68152]
[1753612627511,0.8015,3791.4,3791.3,3.68152]
[1753612627813,1.32882,3791.4,3791.3,3.68152]
[1753612629103,0.8015,3791.4,3791.3,3.68152]
[1753612629509,1.9058,3791.7,3791.6,3.68149]
[1753612629717,2.43308,3791.7,3791.6,3.68149]
[1753612630312,3.79768,3791.7,3791.6,3.68149]
[1753612633412,3.2704,3791.7,3791.6,3.68149]
[1753612633815,3.79768,3791.7,3791.6,3.68149]
[1753612634613,3.2704,3791.7,3791.6,3.68149]
[1753612635511,2.41728,3791.7,3791.6,3.68149]
[1753612635716,3.39368,3791.7,3791.6,3.68149]
[1753612636117,3.2078,3791.9,3791.8,1.83727]
[1753612636416,3.2078,3791.9,3791.8,3.68147]
[1753612636417,6.0742,3791.9,3791.8,3.68147]
[1753612636619,7.00545,3791.9,3791.8,3.68147]
[1753612636813,6.4782,3791.9,3791.8,3.68147]
[1753612637808,5.4807,3791.9,3791.8,3.68147]
[1753612639818,6.00795,3791.9,3791.8,3.68147]
[1753612640016,5.4807,3791.9,3791.8,3.68147]
[1753612640216,7.00545,3791.9,3791.8,3.68147]
[1753612641120,3.79765,3791.9,3791.8,3.68147]
[1753612641819,6.20392,3792.2,3792.1,3.68142]
[1753612642416,7.00542,3792.2,3792.1,3.68142]
[1753612642921,5.4807,3792.2,3792.1,3.68142]
[1753612643421,6.4782,3792.2,3792.1,3.68142]
[1753612643620,7.00541,3792.2,3792.1,3.68142]
[1753612646222,3.79761,3792.2,3792.1,3.68142]
[1753612646423,7.00541,3792.2,3792.1,3.68142]
[1753612646626,4.9176,3792.2,3792.1,3.68142]
[1753612647325,6.0742,3792.2,3792.1,3.68142]
[1753612647622,7.00541,3792.2,3792.1,3.68142]
[1753612650825,6.4782,3792.2,3792.1,3.68142]
[1753612651518,7.00541,3792.2,3792.1,3.68142]
[1753612652032,6.4782,3792.2,3792.1,3.68142]
[1753612652531,7.00541,3792.2,3792.1,3.68142]
[1753612653431,6.4782,3792.2,3792.1,3.68142]
[1753612654126,3.2078,3792.2,3792.1,3.68142]
[1753612655032,3.2078,3792.6,3792.5,1.3133]
[1753612655230,3.2078,3792.6,3792.5,3.61187]
[1753612655620,5.1859,3793.0,3792.9,1.84041]
[1753612655830,6.5028,3793.0,3792.9,3.61181]
[1753612656028,2.6932,3793.0,3792.9,3.61181]
[1753612657230,3.8091,3793.0,3792.9,3.61181]
[1753612657726,4.3362,3793.0,3792.9,3.61181]
[1753612658532,4.74,3793.0,3792.9,3.61181]
[1753612660225,1.0,3793.0,3792.9,3.61181]
[1753612660437,1.0,3793.0,3792.9,29.75381]
[1753612661433,1.0,3793.0,3792.9,24.75381]
[1753612664330,4.2129,3793.0,3792.9,24.74981]
[1753612665631,4.2129,3793.0,3792.9,3.61181]
[1753612665836,4.2129,3793.0,3792.9,24.74681]
[1753612667631,1.9454,3793.0,3792.9,24.74681]
[1753612667838,1.0,3793.0,3792.9,24.74681]
[1753612668138,1.8212,3793.8,3793.7,0.7754]
[1753612668337,0.2,3793.9,3793.7,0.7754]
[1753612668338,0.2,3793.9,3793.8,3.61169]
[1753612668533,1.0904,3793.9,3793.8,6.81949]
[1753612668737,3.4129,3793.9,3793.8,27.95249]
[1753612669128,2.8111,3793.9,3793.8,27.95249]
[1753612669333,0.2,3793.9,3793.8,27.95249]
[1753612669732,1.5169,3793.9,3793.8,27.95249]
[1753612669931,2.8111,3793.9,3793.8,27.95249]
[1753612670141,3.4129,3793.9,3793.8,25.6816]
[1753612670839,3.93987,3793.9,3793.8,25.1152]
[1753612671635,3.93987,3793.9,3793.8,24.3378]
[1753612672133,3.93987,3793.9,3793.8,3.2078]
[1753612672341,3.93987,3793.9,3793.7,21.13]
[1753612672342,1.41739,3793.8,3793.7,21.13]
[1753612672634,2.73429,3793.8,3793.7,21.13]
[1753612672828,2.73429,3793.8,3793.7,23.0302]
[1753612675340,1.6382,3793.8,3793.7,24.7417]
[1753612675642,2.16519,3793.8,3793.7,24.7417]
[1753612675837,1.6382,3793.8,3793.7,24.7417]
[1753612676439,2.16519,3793.8,3793.7,24.7417]
[1753612676636,1.6382,3793.8,3793.7,24.7417]
[1753612677934,1.2619,3793.8,3793.7,24.7417]
[1753612678135,0.7478,3793.8,3793.7,24.7417]
[1753612678834,0.9559,3793.9,3793.8,3.71799]
[1753612679038,1.4587,3793.9,3793.8,6.92579]
[1753612679240,1.8905,3793.9,3793.8,6.92579]
[1753612680246,2.28042,3794.4,3794.3,3.01881]
[1753612680439,2.28042,3794.4,3794.3,24.84291]
[1753612680641,1.7535,3794.4,3794.3,24.84291]
[1753612680942,2.21741,3794.4,3794.3,24.84291]
[1753612681241,1.6905,3794.4,3794.3,24.84291]
[1753612681438,2.90031,3794.4,3794.3,23.64282]
[1753612681636,1.2981,3794.4,3794.3,24.84292]
[1753612681832,1.2587,3794.4,3794.3,24.84292]
[1753612682035,0.7559,3794.4,3794.3,24.84292]
[1753612682339,3.7106,3794.8,3794.7,3.71786]
[1753612682537,1.0,3795.0,3794.7,24.316]
[1753612682738,1.0,3795.0,3794.9,3.71784]
[1753612682939,1.0,3795.0,3794.9,24.84184]
[1753612683937,0.018,3795.3,3794.9,24.84184]
[1753612683938,1.3015,3795.3,3795.2,3.71779]
[1753612684138,0.7739,3795.3,3795.2,24.84079]
[1753612684343,2.6311,3795.3,3795.2,24.84079]
[1753612685039,2.2428,3795.3,3795.2,24.84079]
[1753612685240,2.19588,3795.3,3795.2,24.84079]
[1753612685734,1.6691,3795.3,3795.2,24.84079]
[1753612685939,2.19588,3795.3,3795.2,24.84079]
[1753612686135,3.15788,3795.3,3795.2,3.191]
[1753612686343,3.77778,3795.3,3795.2,23.1109]
[1753612686835,3.77778,3795.3,3795.2,24.83479]
[1753612687039,3.15788,3795.3,3795.2,24.83479]
[1753612687240,2.6311,3795.3,3795.2,24.83479]
[1753612687946,0.018,3795.3,3795.2,24.83479]
[1753612689545,3.77778,3795.3,3795.2,23.1079]
[1753612689746,3.77778,3795.3,3795.2,23.63469]
[1753612690044,3.77778,3795.3,3795.2,24.83179]
[1753612690238,3.77778,3795.3,3795.2,24.305]
[1753612690434,3.77778,3795.3,3795.2,1.9909]
[1753612690646,3.75981,3795.1,3795.0,3.2078]
[1753612690835,1.81034,3794.9,3794.8,0.5732]
[1753612691139,3.75984,3794.9,3794.8,21.117]
[1753612691334,3.75984,3794.9,3794.8,21.6902]
[1753612691544,3.75984,3794.9,3794.8,22.0919]
[1753612691844,3.75984,3794.9,3794.8,22.7005]
[1753612692046,3.75984,3794.9,3794.8,23.6089]
[1753612692248,3.75984,3794.9,3794.8,24.305]
[1753612692646,3.75984,3794.9,3794.8,23.6089]
[1753612693242,3.75984,3794.9,3794.8,23.1079]
[1753612693949,3.75984,3794.9,3794.8,22.4993]
[1753612694150,3.75984,3794.9,3794.8,21.117]
[1753612694449,0.8911,3794.5,3794.4,3.2078]
[1753612694643,3.75989,3794.5,3794.4,25.82561]
[1753612694843,3.75989,3794.5,3794.4,26.84161]
[1753612695643,3.75989,3794.5,3794.4,24.897]
[1753612695838,3.75989,3794.5,3794.4,25.2987]
[1753612696040,3.75989,3794.5,3794.4,26.23301]
[1753612696245,2.6131,3794.9,3794.8,1.83695]
[1753612696551,2.6131,3794.9,3794.8,28.03765]
[1753612697254,3.13995,3794.9,3794.8,28.03765]
[1753612698449,3.75985,3794.9,3794.8,23.02415]
[1753612699655,3.75988,3794.6,3794.5,1.94458]
[1753612699854,3.75988,3794.6,3794.5,23.05958]
[1753612700249,3.75988,3794.6,3794.5,23.63278]
[1753612700556,3.75988,3794.6,3794.5,23.1059]
[1753612700949,3.75988,3794.6,3794.5,23.63279]
[1753612701149,3.75988,3794.6,3794.5,23.02419]
[1753612701350,3.75989,3794.5,3794.4,3.7347]
[1753612701651,3.75989,3794.5,3794.4,24.8497]
[1753612701847,3.75989,3794.5,3794.4,25.4229]
[1753612702455,3.75989,3794.5,3794.4,26.8406]
[1753612702653,1.8324,3794.5,3794.4,28.0377]
[1753612702848,1.2587,3794.5,3794.4,28.0377]
[1753612704655,1.78559,3794.5,3794.4,28.0377]
[1753612704861,3.13999,3794.5,3794.4,28.0377]
[1753612705154,3.75989,3794.5,3794.4,26.3127]
[1753612705651,3.75989,3794.5,3794.4,3.2078]
[1753612705953,3.75993,3794.2,3794.1,0.5732]
[1753612706150,3.75993,3794.2,3794.1,21.6872]
[1753612706654,3.75993,3794.2,3794.1,21.114]
[1753612706855,3.75993,3794.2,3794.1,24.302]
[1753612707250,3.75993,3794.2,3794.1,21.114]
[1753612707452,1.3228,3794.0,3793.8,0.5732]
[1753612707652,3.81436,3794.0,3793.9,21.114]
[1753612708054,3.81436,3794.0,3793.9,21.6949]
[1753612709149,3.81436,3794.0,3793.9,22.0753]
[1753612709655,3.81436,3794.0,3793.9,23.0958]
[1753612712755,2.3591,3793.7,3793.6,24.323]
[1753612712947,3.2392,3793.7,3793.6,24.85001]
[1753612713353,3.8325,3793.7,3793.6,24.323]
[1753612713753,3.8325,3793.7,3793.6,21.114]
[1753612713956,3.83253,3793.5,3793.4,0.5809]
[1753612714159,3.83253,3793.5,3793.4,21.6959]
[1753612714558,3.83253,3793.5,3793.4,23.0968]
[1753612714756,3.83253,3793.5,3793.4,22.4788]
[1753612715256,0.52706,3793.3,3793.2,0.9984]
[1753612715562,3.83256,3793.3,3793.2,22.6943]
[1753612715957,0.52709,3793.1,3793.0,3.2078]
[1753612716161,3.83259,3793.1,3793.0,25.2851]
[1753612716561,3.83259,3793.1,3793.0,26.3056]
[1753612718467,3.83259,3793.1,3793.0,5.1896]
[1753612721965,3.83259,3793.1,3793.0,1.9818]
[1753612723168,3.83259,3793.1,3793.0,0.9613]
[1753612723372,3.83259,3793.1,3793.0,1.9818]
[1753612727468,3.83259,3793.1,3793.0,1.3638]
[1753612728478,3.83259,3793.1,3793.0,1.9818]
[1753612728666,3.83259,3793.1,3793.0,0.9613]
[1753612728866,3.83259,3793.1,3793.0,1.9818]
[1753612729065,3.2078,3793.6,3793.5,0.52703]
[1753612729274,3.2392,3793.7,3793.6,1.0893]
[1753612729480,3.2392,3793.7,3793.3,0.7829]
[1753612729481,3.83254,3793.4,3793.3,0.7829]
[1753612729871,3.83254,3793.4,3793.3,1.3638]
[1753612730073,3.23924,3793.4,3793.3,3.73606]
[1753612730472,3.83254,3793.4,3793.3,3.73606]
[1753612730673,3.83254,3793.4,3793.3,2.5222]
[1753612730873,3.83254,3793.4,3793.3,3.04926]
[1753612731178,3.83254,3793.4,3793.3,1.9818]
[1753612731875,3.83254,3793.4,3793.3,3.209]
[1753612732876,3.23924,3793.4,3793.3,3.209]
[1753612733076,3.23924,3793.4,3793.3,3.73606]
[1753612733468,3.3055,3793.4,3793.0,3.2078]
[1753612733680,3.3055,3793.1,3793.0,26.2492]
[1753612733876,3.23929,3793.1,3793.0,23.7282]
[1753612734172,3.23929,3793.1,3793.0,24.9271]
[1753612734677,0.7565,3793.1,3793.0,24.9271]
[1753612735277,1.2986,3793.1,3793.0,24.9271]
[1753612737373,1.9134,3793.1,3793.0,24.9271]
[1753612737880,2.3079,3793.1,3793.0,24.9271]
[1753612738281,3.82759,3793.1,3793.0,24.9271]
[1753612738580,3.82759,3793.1,3793.0,21.7729]
[1753612738881,3.82759,3793.1,3793.0,23.6695]
[1753612739075,3.82759,3793.1,3793.0,24.3279]
[1753612739275,3.82759,3793.1,3793.0,24.8573]
[1753612739677,3.23929,3793.1,3793.0,24.8573]
[1753612740081,2.73199,3793.1,3793.0,24.8573]
[1753612740482,2.2049,3793.1,3793.0,24.8573]
[1753612740674,1.2508,3793.1,3793.0,24.8573]
[1753612741169,1.77789,3793.1,3793.0,24.8573]
[1753612741683,3.71627,3793.9,3793.8,3.1322]
[1753612741982,3.71627,3793.9,3793.8,3.65919]
[1753612742779,3.71627,3793.9,3793.8,3.00079]
[1753612745384,3.71627,3793.9,3793.8,3.65919]
[1753612747682,1.233,3793.5,3793.4,22.0296]
[1753612747881,3.71633,3793.5,3793.4,22.6045]
[1753612748083,3.71633,3793.5,3793.4,21.6338]
[1753612748482,2.2341,3793.5,3793.4,24.90324]
[1753612748884,2.76113,3793.5,3793.4,24.90324]
[1753612749082,2.2341,3793.5,3793.4,24.90324]
[1753612749382,2.76113,3793.5,3793.4,3.65924]
[1753612749788,2.2341,3793.5,3793.4,3.65924]
[1753612749987,3.71633,3793.5,3793.4,3.65924]
[1753612752186,2.76113,3793.5,3793.4,3.65924]
[1753612752387,0.00510825,3794.0,3793.9,1.84197]
[1753612752591,0.00510825,3794.0,3793.9,24.87627]
[1753612752987,3.2078,3794.3,3794.2,1.84193]
[1753612753283,3.2078,3794.3,3794.2,24.93923]
[1753612753883,2.84913472,3795.6,3794.8,0.7856]
[1753612753884,3.5777,3794.9,3794.8,0.7856]
[1753612754086,0.9571,3794.9,3794.8,24.91225]
[1753612754288,0.6063,3795.3,3795.0,3.0994]
[1753612754488,0.6063,3795.3,3795.2,6.83399]
[1753612754489,3.14878,3795.3,3795.2,6.83399]
[1753612754791,3.91195241,3795.3,3795.2,28.12999]
[1753612754992,0.72265241,3795.3,3795.2,28.12999]
[1753612755395,0.6063,3795.3,3795.2,28.12999]
[1753612756393,2.622,3795.3,3795.2,28.12999]
[1753612756591,3.2073,3795.3,3795.2,28.12999]
[1753612757095,2.622,3795.3,3795.2,28.12999]
[1753612757591,3.14878,3795.3,3795.2,27.6032]
[1753612757985,3.73408,3795.3,3795.2,27.6032]
[1753612758589,3.73408,3795.3,3795.2,6.83399]
[1753612758790,3.73408,3795.3,3795.2,27.0482]
[1753612759395,3.73408,3795.3,3795.2,27.57499]
[1753612759698,3.73408,3795.3,3795.2,28.12199]
[1753612759898,3.2073,3795.3,3795.2,28.12199]
[1753612760398,0.6063,3795.3,3795.2,28.12199]
[1753612761196,1.7578,3795.3,3795.2,28.12199]
[1753612761494,3.2073,3795.3,3795.2,28.12199]
[1753612762088,3.73408,3795.3,3795.2,27.0402]
[1753612762998,3.73408,3795.3,3795.2,27.56699]
[1753612763193,3.73408,3795.3,3795.2,27.0402]
[1753612763391,3.73408,3795.3,3795.2,21.273]
[1753612764594,3.71614,3794.9,3794.8,3.2078]
[1753612764895,3.71614,3794.9,3794.8,24.4788]
[1753612765595,3.71614,3794.9,3794.8,3.2078]
[1753612765892,3.71614,3794.9,3794.8,24.4828]
[1753612766497,3.71614,3794.9,3794.8,21.275]
[1753612767495,1.86538,3794.6,3794.5,1.8989]
[1753612767787,3.79598,3794.6,3794.5,23.8589]
[1753612767990,3.79598,3794.6,3794.5,2.5879]
[1753612768195,3.79598,3794.6,3794.5,23.1669]
[1753612769798,3.79598,3794.6,3794.5,1.8989]
[1753612769997,3.79598,3794.6,3794.5,23.1699]
[1753612770693,3.79598,3794.6,3794.5,1.8989]
[1753612770894,3.79598,3794.6,3794.4,3.2078]
[1753612770895,1.86539,3794.5,3794.4,3.2078]
[1753612771095,3.79599,3794.5,3794.4,25.0387]
[1753612771297,3.79599,3794.5,3794.4,25.4291]
[1753612771596,3.79599,3794.5,3794.4,27.0287]
[1753612771895,3.79599,3794.5,3794.4,3.2078]
[1753612772100,3.79599,3794.5,3794.4,24.4668]
[1753612772588,3.79599,3794.5,3794.4,3.2078]
[1753612772793,3.79599,3794.5,3794.4,25.0327]
[1753612773693,3.79599,3794.5,3794.4,25.4231]
[1753612773895,3.79599,3794.5,3794.4,25.8335]
[1753612776299,3.79599,3794.5,3794.4,24.4608]
[1753612776494,3.79599,3794.5,3794.4,3.2078]
[1753612776699,2.29219,3794.5,3794.4,27.5954]
[1753612776900,0.52685,3794.8,3794.7,1.301]
[1753612777092,1.10785,3794.8,3794.7,24.3846]
[1753612777291,0.581,3794.8,3794.7,24.91146]
[1753612777699,1.3579,3795.0,3794.9,3.1356]
[1753612777903,1.10782,3795.0,3794.9,24.4206]
[1753612778104,1.3037,3795.2,3794.9,24.94743]
[1753612778299,1.8847,3795.2,3795.1,0.3904]
[1753612778604,1.8847,3795.2,3795.1,24.4176]
[1753612781307,0.018,3795.3,3795.2,3.1356]
[1753612781506,0.018,3795.3,3795.2,6.3434]
[1753612781710,0.018,3795.3,3795.2,6.87019]
[1753612784000,0.018,3795.3,3795.2,11.87019]
[1753612784503,0.018,3795.3,3795.2,6.87019]
[1753612784703,1.3759,3795.3,3795.2,28.14219]
[1753612785698,1.3759,3795.3,3795.2,27.6134]
[1753612785902,1.3759,3795.3,3795.2,28.14019]
[1753612787007,1.3759,3795.3,3795.2,28.13619]
[1753612787199,0.018,3795.3,3795.2,28.13619]
[1753612787604,0.018,3795.3,3795.2,28.13019]
[1753612788909,0.599,3795.3,3795.2,28.13019]
[1753612790506,0.018,3795.3,3795.2,28.13019]
[1753612791212,0.599,3795.3,3795.2,28.13019]
[1753612791413,0.018,3795.3,3795.2,28.13019]
[1753612791909,6.42236,3797.6,3797.5,1.3008]
[1753612792113,3.40268406,3797.6,3797.5,22.5468]
[1753612792303,2.82998406,3797.6,3797.5,23.60577]
[1753612792507,0.71458406,3797.6,3797.5,23.60577]
[1753612793212,0.018,3798.3,3798.2,1.85968]
[1753612793410,0.018,3798.3,3798.2,27.28748]
[1753612793611,0.00669623,3798.6,3798.5,1.32713]
[1753612793805,0.00669623,3798.6,3798.5,23.5523]
[1753612794009,0.00669623,3798.6,3798.5,29.07863]
[1753612794413,1.34519623,3798.6,3798.5,23.5523]
[1753612794609,0.00669623,3798.6,3798.5,24.07863]
[1753612795114,1.3579,3799.2,3799.1,1.8333]
[1753612795413,2.64163,3799.3,3799.2,1.3008]
[1753612795617,3.21434,3799.2,3799.1,3.2078]
[1753612795812,2.6881,3799.2,3799.1,26.2316]
[1753612796017,3.79534,3799.2,3799.1,26.2316]
[1753612796212,2.6964,3799.2,3799.1,26.7641]
[1753612796411,3.22264,3799.2,3799.1,26.7641]
[1753612796609,3.79534,3799.2,3799.1,25.8212]
[1753612796813,3.79534,3799.2,3799.1,24.9418]
[1753612797410,3.79534,3799.2,3799.1,3.2078]
[1753612797619,3.80111,3798.7,3798.6,4.5488]
[1753612797809,3.80111,3798.7,3798.6,25.7373]
[1753612798515,3.80111,3798.7,3798.6,25.3491]
[1753612798716,3.80111,3798.7,3798.6,25.7383]
[1753612799018,3.80111,3798.7,3798.6,26.2738]
[1753612799415,3.80111,3798.7,3798.6,26.2648]
[1753612800320,0.16865803,3799.4,3798.7,1.1787]
[1753612800612,1.84342,3799.3,3799.2,3.2078]
[1753612800820,1.84348,3798.9,3798.8,4.202]
[1753612801014,1.84348,3798.9,3798.8,4.5922]
[1753612801314,1.84348,3798.9,3798.8,5.7457]
[1753612801621,1.3172,3798.9,3798.8,6.5786]
[1753612801821,1.3172,3798.9,3798.8,7.10489]